[Event "Reykjavik Open 2024"]
[Site "Reykjavik"]
[Date "2024.03.18"]
[Round "6.3"]
[White "Xu, Xiangyu"]
[Black "Nevednichy, Vladislav"]
[Result "1/2-1/2"]
[ECO "C41"]
[WhiteElo "2623"]
[BlackElo "2445"]
[Annotator "TA"]
[PlyCount "107"]
[EventDate "2024.03.12"]
[EventCountry "ISL"]
[SourceTitle "playchess.com"]
[Source "ChessBase"]
[SourceQuality "1"]
[TimeControl "40/5400+30:1800+30"]

{[%evp 17,107,44,46,0,1,2,7,10,34,35,42,31,50,45,37,35,58,52,54,25,64,54,108,96,89,90,94,21,58,30,61,2,41,31,36,-14,0,-10,8,0,1,-45,-46,-36,-37,-37,-36,-39,0,0,20,20,21,22,42,29,19,34,37,15,88,60,44,57,48,35,30,34,34,40,39,42,73,43,39,30,30,13,13,8,8,8,12,12,12,8,6,5,5,5,5,6]} 1. d4 {[%emt 0:03:33]} d6 {[%emt 0:00:07]} 2. e4 {[%emt 0:00:07]} Nf6 {[%emt 0:00:04]} 3. Nc3 {[%emt 0:00:08]} e5 {[%emt 0:00:07]} 4. Nf3 {[%emt 0:00:10]} Nbd7 {[%emt 0:00:29]} 5. Bc4 {[%emt 0:00:11]} Be7 {[%emt 0:00:05]} 6. O-O {[%emt 0:00:11]} O-O {[%emt 0:00:06]} 7. a4 {[%emt 0:00:26]} c6 {[%emt 0:02:46]} 8. Re1 {[%emt 0:00:07]} b6 {[%emt 0:06:12]} 9. h3 {[%emt 0:03:49]} a6 {[%emt 0:00:07]} 10. Bd3 {[%emt 0:28:27]} (10. Ba2 $14 {kam in Betracht.}) 10... Re8 {[%emt 0:04:17]} 11. Ne2 {[%emt 0:00:58]} Bf8 {[%emt 0:01:37]} 12. Ng3 {[%emt 0:00:09]} g6 {[%emt 0:09:04]} 13. c3 {[%emt 0:00:05]} Bg7 {[%emt 0:00:27]} 14. Bc2 {[%emt 0:00:06]} Qc7 {[%emt 0:01:45]} 15. Be3 {[%emt 0:00:07]} Bb7 {[%emt 0:06:36]} 16. Qd2 {[%emt 0:00:09]} c5 {[%emt 0:07:31]} 17. d5 {[%emt 0:01:03]} c4 {[%emt 0:11:15]} 18. Nh2 {[%emt 0:07:02]} Kh8 {[%emt 0:05:35]} 19. Rf1 {[%emt 0:00:46]} Ng8 {[%emt 0:06:34]} (19... b5 $14) 20. Ng4 {[%emt 0:01:08]} Bc8 {[%emt 0:06:45]} 21. Qe2 {[%emt 0:06:36]} Rb8 {[%emt 0:02:20] [#]} 22. Kh1 {[%emt 0:01:52]} (22. f4 $1 $16) 22... Re7 {[%emt 0:11:35]} 23. Rae1 {[%emt 0:14:19]} Re8 {[%emt 0:00:19]} 24. Qd1 {[%emt 0:01:56]} (24. f4 $14) 24... b5 {[%emt 0:00:43]} 25. axb5 {[%emt 0:02:07]} axb5 {[%emt 0:00:04]} 26. Qe2 {[%emt 0:01:14]} (26. f4 $14) 26... Nc5 {[%emt 0:07:20]} 27. f4 {[%emt 0:10:14]} Bxg4 {[%emt 0:02:32]} 28. Qxg4 {[%emt 0:00:15]} exf4 {[%emt 0:00:22]} 29. Bxf4 {[%emt 0:00:07]} (29. Qxf4 $11 Be5 30. Bd4) 29... b4 $15 {[%emt 0:01:25]} 30. Qf3 {[%emt 0:06:20]} bxc3 {[%emt 0:00:19]} 31. bxc3 {[%emt 0:00:04]} Rb2 {[%emt 0:00:54]} 32. Re2 {[%emt 0:00:08]} Rb7 {[%emt 0:01:20]} 33. Ref2 {[%emt 0:01:11]} Rf8 {[%emt 0:01:13]} 34. Ne2 {[%emt 0:00:12]} Nd7 {[%emt 0:00:16]} 35. Nd4 {[%emt 0:00:11]} Ne5 $1 {[%emt 0:00:10] Wehrt Nc6 ab} 36. Bxe5 {[%emt 0:00:16]} dxe5 {[%emt 0:01:56]} 37. Nc6 {[%emt 0:00:10]} Ne7 {[%emt 0:00:29]} 38. Ba4 {[%emt 0:00:09]} Nxc6 {[%emt 0:00:27]} (38... Nc8 $11 {hält das Gleichgewicht.}) 39. Bxc6 {[%emt 0:00:08]} Rb3 {[%emt 0:00:15]} 40. Qe3 {[%emt 0:00:07]} Qe7 {[%emt 0:03:28] Verhindert Qc5.} 41. Qd2 {[%emt 0:31:38]} Qc5 {[%emt 0:02:44][%cal Of7f5]} 42. Rxf7 {[%emt 0:00:00]} Rxf7 {[%emt 0:00:07]} 43. Rxf7 {[%emt 0:00:00]} Rb1+ {[%emt 0:00:22][%cal Bb3b1,Bb1d1,Bd1d3][%mdl 32]} 44. Kh2 {[%emt 0:00:00][%cal Bh1h2,Bh2g3,Bg3h4][%mdl 32]} Qg1+ {[%emt 0:00:21]} 45. Kg3 {[%emt 0:00:00] Aktives Gegenspiel!} Rd1 {[%emt 0:00:47]} 46. Qf2 {[%emt 0:00:00][%cal Of7f8] [#] Beabsichtigt Rf8+! und Matt.} Rd3+ {[%emt 0:00:37]} 47. Kh4 {[%emt 0:00:00] Droht Matt per Rf8+.} Qxf2+ $1 {[%emt 0:01:16] Die Stellung ist ausgeglichen.} 48. Rxf2 $11 {[%emt 0:00:00][%mdl 4096] Endspiel. KRB-KRB} Bh6 {[%emt 0:03:55]} 49. Bb5 {[%emt 0:00:20]} Bf4 {[%emt 0:00:49]} (49... Rxc3 {ist interessant.} 50. d6 Rd3 51. d7 Kg7) 50. Rf3 {[%emt 0:04:50] Wehrt Bg3+ ab} (50. Bxc4 $2 Rxc3 51. Rxf4 exf4 $19) 50... Rxf3 {[%emt 0:00:13]} 51. gxf3 {[%emt 0:00:03][%cal Od5d6] Droht stark d6!} Kg7 {[%emt 0:00:48]} (51... h5 $5 52. d6 $8 (52. Bxc4 $2 Kh7 53. Bf1 Kh6 54. Bg2 g5#) 52... Kh7 $16) 52. d6 $1 {[%emt 0:00:04][%cal Od6d7] Weiss droht d7! und Matt.} (52. Bxc4 $2 {wird mattgesetzt.} h5 (52... Bd2 53. Kg3 $14) 53. Bf1 Kh6 54. Bg2 g5#) 52... h5 {[%emt 0:02:38] ( -> ...Kh6)} 53. d7 $1 {[%emt 0:00:04]} (53. Bxc4 $2 {ist ein Selbstmatt.} Kh6 54. Bg8 g5#) 53... Kh6 {[%emt 0:00:05][%csl Gf4,Gh6][%cal Rg6g5]} 54. d8=Q {[%emt 0:00:04] Gewichteter Fehlerwert: Weiß=0.15 (sehr präzise) /Schwarz=0.11 (sehr präzise) .  Fehler:       	Weiß=4     	Schwarz=2     Ungenau:       	Weiß=4     	Schwarz=5     OK:         	Weiß=16    	Schwarz=12    Bester:       	Weiß=2     	Schwarz=6     Stark:        	Weiß=2     	Schwarz=2} (54. d8=B $5) 1/2-1/2

[Event "Reykjavik Open 2024"]
[Site "Reykjavik"]
[Date "2024.03.18"]
[Round "6.4"]
[White "Katz, Alexander"]
[Black "Pultinevicius, Paulius"]
[Result "0-1"]
[ECO "B12"]
[WhiteElo "2418"]
[BlackElo "2575"]
[Annotator "TA"]
[PlyCount "74"]
[EventDate "2024.03.12"]
[EventCountry "ISL"]
[SourceTitle "playchess.com"]
[Source "ChessBase"]
[SourceQuality "1"]
[TimeControl "40/5400+30:1800+30"]

{[%evp 10,73,25,24,49,38,48,27,53,41,34,35,33,48,43,48,22,32,35,0,0,-6,-20,-337,-316,-286,-253,-463,-529,-508,-545,-547,-541,-507,-514,-531,-499,-494,-513,-523,-507,-597,-605,-593,-584,-1291,-556,-530,-527,-648,-639,-676,-701,-1128,-1096,-29987,-29988,-29990,-29991,-29994,-29995,-29996,-29997,-29997,-29998,-29999]} 1. e4 {[%emt 0:00:01]} c6 {[%emt 0:00:05]} 2. d4 {[%emt 0:00:10]} d5 {[%emt 0:00:04]} 3. e5 {[%emt 0:00:11]} Bf5 {[%emt 0:00:05]} 4. Nf3 {[%emt 0:00:41]} e6 {[%emt 0:00:06]} 5. Be2 {[%emt 0:00:09]} Nd7 {[%emt 0:00:05]} 6. O-O {[%emt 0:00:27]} a5 {[%emt 0:00:04][%cal Ba7a5,Ba5a4][%mdl 32]} 7. Nbd2 {[%emt 0:04:20]} a4 {[%emt 0:00:08]} 8. c3 {[%emt 0:02:37]} f6 {[%emt 0:08:26] White has an edge.} 9. Re1 {[%emt 0:03:05]} fxe5 {[%emt 0:02:16]} 10. dxe5 {[%emt 0:02:17] Strongly threatening Nd4.} Bc5 {[%emt 0:03:41]} 11. Nd4 {[%emt 0:07:41]} Ne7 {[%emt 0:00:19]} 12. g4 {[%emt 0:01:51]} Bxd4 {[%emt 0:00:37]} 13. cxd4 {[%emt 0:12:04]} Bg6 {[%emt 0:00:37]} 14. h4 {[%emt 0:02:53]} h5 {[%emt 0:22:40]} 15. gxh5 {[%emt 0:02:12]} Nf5 {[%emt 0:02:20][%csl LRd4,LRh4][%cal Od8h4]} 16. hxg6 $2 {[%emt 0:05:21][%mdl 8192] White does not recover from this.} (16. Ne4 $1 $11 {and White is okay.} Qxh4 (16... dxe4 17. Bg5 $11) 17. Bg5 Qxe4 18. Bg4 Qxe1+ (18... Qxd4 $2 19. Bxf5 Bxf5 20. Qxd4 $18) 19. Qxe1 Bxh5 20. Qd1 (20. Bxf5 Bf3 21. Bg6+ Kf8 22. Qb4+ c5) 20... Bxg4 21. Qxg4) 16... Qxh4 $19 {[%emt 0:00:07]} 17. Bf3 {[%emt 0:00:30] Inhibits Qh1+.} Rh6 {[%emt 0:19:11]} (17... Nxd4 18. Bg2 Nxe5 19. Nf1 $11 (19. Rxe5 Qh2+ 20. Kf1 Qxe5 $11)) 18. Nf1 $2 {[%emt 0:15:05]} (18. Bg2 {might work better.} Qh2+ (18... Rxg6 19. Nf3 $17) 19. Kf1 Rxg6 20. Qf3) 18... Rxg6+ {[%emt 0:00:06]} 19. Ng3 {[%emt 0:00:54]} O-O-O {[%emt 0:06:07]} (19... Qxd4 $2 20. Bh5 Nf8 21. Bxg6+ Nxg6 22. Nxf5 Qxd1 23. Nd6+ (23. Rxd1 exf5 24. f4 Nf8 $18) (23. Nxg7+ Kf7 $18) 23... Kd7 24. Rxd1 $18) 20. Kf1 {[%emt 0:02:49] [#] Hoping for Nxf5.} Nxg3+ {[%emt 0:07:56]} ({Weaker is} 20... Nxd4 21. Qd3 $11) 21. fxg3 {[%emt 0:00:06]} Rxg3 {[%emt 0:01:46] ( -> ...Qh2)} 22. Ke2 {[%emt 0:02:37][%cal Oe1h1] Rh1! is the strong threat.} Qh2+ {[%emt 0:12:08]} 23. Kd3 {[%emt 0:05:46]} Rf8 {[%emt 0:01:26] Prevents Bf4} 24. Re3 {[%emt 0:01:54]} c5 {[%emt 0:01:19]} 25. Be2 {[%emt 0:15:41]} Rf4 {[%emt 0:01:35]} 26. Kc2 {[%emt 0:06:13] And now Rxg3 would win.} Rxd4 {[%emt 0:00:45]} (26... cxd4 27. Rxg3 Rf2 28. Rxg7 Qxe5 29. Be3 (29. Rg8+ Kc7 $16) 29... dxe3 30. Rg8+ Kc7 31. Rc1 $16) 27. Qe1 {[%emt 0:00:12]} Rxe3 {[%emt 0:03:21]} (27... Rg1 $142 28. Qxg1 Qxg1) 28. Bxe3 {[%emt 0:00:02] [#]} Re4 {[%emt 0:00:12]} 29. Qd2 {[%emt 0:03:33]} Qxe5 {[%emt 0:00:11]} (29... Nxe5 30. Rf1 Nc4 31. Bxc4 Rxc4+ (31... Qxd2+ 32. Kxd2 Rxc4 33. b3 $11) 32. Kb1 Qxd2 33. Bxd2 $17) 30. Rh1 {[%emt 0:00:12] Threatens to win with Rh8+.} Rxe3 {[%emt 0:00:19]} 31. Rh8+ {[%emt 0:01:16]} Kc7 {[%emt 0:00:05]} 32. Qa5+ {[%emt 0:00:25]} b6 {[%emt 0:02:07] Black mates.} 33. Qa7+ {[%emt 0:00:22]} Kd6 {[%emt 0:00:05]} 34. Bb5 {[%emt 0:00:16]} Qf5+ {[%emt 0:00:05]} 35. Kc1 {[%emt 0:01:13]} Re1+ {[%emt 0:00:06]} 36. Kd2 {[%emt 0:00:02]} Qf2+ {[%emt 0:00:05]} 37. Kd3 {[%emt 0:00:07]} Re3# {[%emt 0:00:11] Weighted Error Value: White=0.93/Black=0.25 (precise) .  Loses game:     	White=1     	---        Mistake:       	White=1     	Black=1      Inaccurate:     	White=1     	Black=1      OK:         	White=4     	Black=11     Best:        	White=5     	Black=5} 0-1

[Event "Reykjavik Open 2024"]
[Site "Reykjavik"]
[Date "2024.03.18"]
[Round "6.5"]
[White "Cramling Bellon, Anna"]
[Black "Spencer, Aaron"]
[Result "0-1"]
[ECO "D46"]
[WhiteElo "2115"]
[BlackElo "1899"]
[Annotator "RC"]
[PlyCount "74"]
[EventDate "2024.03.12"]
[EventCountry "ISL"]
[SourceTitle "playchess.com"]
[Source "ChessBase"]
[SourceQuality "1"]
[TimeControl "40/5400+30:1800+30"]

1. d4 {[%emt 0:00:07]} d5 {[%emt 0:00:09]} 2. c4 {[%emt 0:00:12]} c6 {[%emt 0:00:06]} 3. Nc3 {[%emt 0:00:15]} Nf6 {[%emt 0:00:07]} 4. Nf3 {[%emt 0:00:14]} e6 {[%emt 0:00:08]} 5. e3 {[%emt 0:01:09]} Nbd7 {[%emt 0:00:10]} 6. Bd3 {[%emt 0:00:19]} dxc4 {[%emt 0:00:10]} 7. Bxc4 {[%emt 0:00:03]} b5 {[%emt 0:00:09]} 8. Bd3 {[%emt 0:00:05]} Bd6 {[%emt 0:01:05]} 9. O-O {[%emt 0:01:27]} O-O {[%emt 0:00:46]} 10. e4 {[%emt 0:15:27]} e5 {[%emt 0:00:08]} 11. h3 {[%emt 0:01:49]} Re8 {[%emt 0:02:48]} 12. Be3 {[%emt 0:06:25]} b4 {[%emt 0:06:13]} 13. Ne2 {[%emt 0:00:42]} c5 {[%emt 0:02:54]} 14. dxe5 {[%emt 0:03:28]} Bxe5 {[%emt 0:01:24]} 15. Nxe5 {[%emt 0:16:28]} Nxe5 {[%emt 0:03:13]} 16. Bb5 {[%emt 0:00:45]} Bd7 {[%emt 0:01:04]} 17. Bxd7 {[%emt 0:08:10]} Qxd7 {[%emt 0:03:58]} 18. Bxc5 {[%emt 0:04:46]} Qb5 {[%emt 0:00:13]} 19. Bd4 {[%emt 0:04:43]} Rad8 {[%emt 0:05:09]} 20. Qd2 {[%emt 0:19:35]} Nxe4 {[%emt 0:02:34]} 21. Qc2 {[%emt 0:00:27]} Nf3+ {[%emt 0:26:23]} 22. gxf3 {[%emt 0:00:56]} Ng5 {[%emt 0:00:14]} 23. Be3 {[%emt 0:04:57]} Nxf3+ {[%emt 0:00:04]} 24. Kg2 {[%emt 0:06:46]} Qd5 {[%emt 0:00:38]} 25. Kg3 {[%emt 0:00:11]} Ng5 {[%emt 0:02:46]} 26. Bxg5 {[%emt 0:00:56]} Qxg5+ {[%emt 0:00:02]} 27. Kh2 {[%emt 0:00:18]} Rd2 {[%emt 0:00:07]} 28. Qb3 {[%emt 0:03:11]} Rexe2 {[%emt 0:00:43]} 29. Qf3 {[%emt 0:00:15]} Qe5+ {[%emt 0:00:49]} 30. Kg1 {[%emt 0:00:14]} h6 {[%emt 0:01:40]} 31. Rac1 {[%emt 0:00:20]} Kh7 {[%emt 0:01:57]} 32. Rc4 {[%emt 0:01:14]} Rxb2 {[%emt 0:01:39]} 33. Qxf7 {[%emt 0:00:17]} Qg3+ {[%emt 0:00:10]} 34. Kh1 {[%emt 0:00:34]} Qxh3+ {[%emt 0:00:05]} 35. Kg1 {[%emt 0:00:03]} Qg3+ {[%emt 0:00:08]} 36. Kh1 {[%emt 0:00:05]} Rxf2 {[%emt 0:00:12]} 37. Rxf2 {[%emt 0:01:31]} Rxf2 {[%emt 0:00:06]} 0-1

[Event "Reykjavik Open 2024"]
[Site "Reykjavik"]
[Date "2024.03.18"]
[Round "6.6"]
[White "Belenkaya, Dina"]
[Black "Carey, Michael"]
[Result "1-0"]
[ECO "A57"]
[WhiteElo "2164"]
[BlackElo "1880"]
[Annotator "RC"]
[PlyCount "69"]
[EventDate "2024.03.12"]
[EventCountry "ISL"]
[SourceTitle "playchess.com"]
[Source "ChessBase"]
[SourceQuality "1"]
[TimeControl "40/5400+30:1800+30"]

1. d4 {[%emt 0:09:30]} Nf6 {[%emt 0:00:12]} 2. c4 {[%emt 0:00:10]} c5 {[%emt 0:00:06]} 3. d5 {[%emt 0:00:06]} b5 {[%emt 0:00:04]} 4. cxb5 {[%emt 0:00:08]} a6 {[%emt 0:00:05]} 5. e3 {[%emt 0:00:35]} g6 {[%emt 0:00:13]} 6. Nc3 {[%emt 0:00:29]} Bg7 {[%emt 0:00:12]} 7. a4 {[%emt 0:00:25]} O-O {[%emt 0:00:32]} 8. Bc4 {[%emt 0:02:20]} axb5 {[%emt 0:01:29]} 9. Bxb5 {[%emt 0:06:38]} Bb7 {[%emt 0:00:09]} 10. Nge2 {[%emt 0:01:38]} e6 {[%emt 0:06:31]} 11. e4 {[%emt 0:11:28]} Na6 {[%emt 0:05:31]} 12. O-O {[%emt 0:00:51]} exd5 {[%emt 0:01:20]} 13. exd5 {[%emt 0:01:32]} Nc7 {[%emt 0:02:29]} 14. Bc4 {[%emt 0:01:22]} Ba6 {[%emt 0:01:50]} 15. Bxa6 {[%emt 0:02:20]} Rxa6 {[%emt 0:01:13]} 16. Qd3 {[%emt 0:14:00]} Qa8 {[%emt 0:02:36]} 17. Rd1 {[%emt 0:09:56]} d6 {[%emt 0:00:33]} 18. Ng3 {[%emt 0:03:51]} Rb8 {[%emt 0:06:52]} 19. Qf3 {[%emt 0:04:19]} Rb3 {[%emt 0:08:57]} 20. Ra3 {[%emt 0:05:28]} Rb4 {[%emt 0:05:18]} 21. h3 {[%emt 0:01:26]} Nd7 {[%emt 0:04:33]} 22. Nge4 {[%emt 0:03:40]} Ne5 {[%emt 0:05:34]} 23. Qe2 {[%emt 0:00:49]} h6 {[%emt 0:07:59]} 24. Nb5 {[%emt 0:05:13]} Nxd5 {[%emt 0:06:47]} 25. Nexd6 {[%emt 0:02:29]} Raxa4 {[%emt 0:06:47]} 26. Bxh6 {[%emt 0:04:07]} Rxb2 {[%emt 0:02:32]} 27. Qxb2 {[%emt 0:07:46]} Nf3+ {[%emt 0:00:11]} 28. gxf3 {[%emt 0:00:27]} Bxb2 {[%emt 0:00:09]} 29. Rxa4 {[%emt 0:00:02]} Qxa4 {[%emt 0:00:28]} 30. Rxd5 {[%emt 0:00:08]} Qh4 {[%emt 0:05:57]} 31. Be3 {[%emt 0:02:13]} c4 {[%emt 0:02:05]} 32. Ne4 {[%emt 0:00:19]} Qxh3 {[%emt 0:02:39]} 33. Rd8+ {[%emt 0:00:15]} Kg7 {[%emt 0:01:40]} 34. Nbd6 {[%emt 0:00:12]} Qxf3 {[%emt 0:02:43]} 35. Ne8+ {[%emt 0:00:12]} 1-0

[Event "Reykjavik Open 2024"]
[Site "Reykjavik"]
[Date "2024.03.18"]
[Round "6.7"]
[White "Sanal, Vahap"]
[Black "Jin, Yueheng"]
[Result "1-0"]
[ECO "C00"]
[WhiteElo "2558"]
[BlackElo "2404"]
[Annotator "TA"]
[PlyCount "83"]
[EventDate "2024.03.12"]
[EventCountry "ISL"]
[SourceTitle "playchess.com"]
[Source "ChessBase"]
[SourceQuality "1"]
[TimeControl "40/5400+30:1800+30"]

{[%evp 17,83,-14,0,0,0,0,7,-8,0,0,0,0,0,0,0,0,14,0,0,0,0,0,0,0,0,23,41,31,98,6,19,0,0,-46,-43,-64,127,0,0,-68,-64,-149,-140,-158,-91,-165,-164,-125,10,8,1533,1441,1018,0,2294,1367,5006,4898,29989,29990,29990,29991,29991,29992,29994,29995,29995,29996]} 1. e4 {[%emt 0:01:33]} c5 {[%emt 0:00:04]} 2. Nf3 {[%emt 0:00:07]} e6 {[%emt 0:00:03]} 3. d3 {[%emt 0:00:08]} Nc6 {[%emt 0:00:56]} 4. g3 {[%emt 0:02:10]} d5 {[%emt 0:00:09]} 5. Qe2 {[%emt 0:00:09]} Nf6 {[%emt 0:02:46]} 6. Bg2 {[%emt 0:00:11]} Be7 {[%emt 0:01:10]} 7. O-O {[%emt 0:00:18]} O-O {[%emt 0:05:21]} 8. e5 {[%emt 0:00:22]} Nd7 {[%emt 0:02:59]} 9. c4 {[%emt 0:00:10]} Re8 {[%emt 0:09:34]} 10. Re1 {[%emt 0:01:49]} Nf8 {[%emt 0:00:29]} 11. h4 {[%emt 0:00:44][%cal Bh2h4,Bh4h5,Bh5h6][%mdl 32]} a6 {[%emt 0:03:37]} 12. h5 {[%emt 0:01:43] Die Stellung ist ausgeglichen.} (12. Nc3 {hält die Spannung aufrecht.} b5 13. Ng5 Nd4 14. Qh5) 12... b5 {[%emt 0:03:49]} 13. h6 {[%emt 0:00:56]} g6 {[%emt 0:00:18]} 14. Nbd2 {[%emt 0:04:28][%cal Bb1d2,Bd2f1,Bf1h2,Bh2g4][%mdl 32]} Bb7 {[%emt 0:02:11]} 15. Nf1 {[%emt 0:00:46]} Qc7 {[%emt 0:01:43]} 16. N1h2 {[%emt 0:00:52]} Red8 {[%emt 0:16:24]} 17. Ng4 {[%emt 0:10:10]} dxc4 {[%emt 0:00:18]} 18. dxc4 {[%emt 0:00:21]} Nd4 {[%emt 0:00:18]} 19. Nxd4 {[%emt 0:00:14]} cxd4 {[%emt 0:00:18]} 20. Bxb7 {[%emt 0:08:11]} Qxb7 {[%emt 0:00:01]} 21. cxb5 {[%emt 0:02:52]} axb5 {[%emt 0:00:08]} (21... d3 {ist vielschichtiger.} 22. Qe3 axb5 23. b3 Nd7) 22. Rd1 {[%emt 0:09:51]} Ra7 {[%emt 0:22:18]} (22... Qc7 $14) 23. Bf4 {[%emt 0:01:59]} (23. b3 $16) 23... Rd5 $11 {[%emt 0:02:41]} 24. Qd2 {[%emt 0:08:25] Und jetzt Bg5 wäre schön.} Nd7 {[%emt 0:00:44]} 25. Bg5 {[%emt 0:00:38]} (25. a3 $11 {sieht stärker aus.}) 25... Bf8 $15 {[%emt 0:12:07]} 26. Qf4 {[%emt 0:08:14]} Qb6 {[%emt 0:00:48] [#]} (26... f5 $15 {behält die Oberhand.} 27. exf6 Rf5) 27. Bf6 {[%emt 0:05:53]} (27. Rac1 $1 $16 {[%cal Rc1c8]}) 27... d3 $11 {[%emt 0:02:48]} 28. Qf3 {[%emt 0:08:28]} (28. b3 $1 $11) 28... Qd4 {[%emt 0:03:26]} 29. Rac1 {[%emt 0:04:09]} ({Günstiger ist} 29. Kg2 $15) 29... Ra4 $1 $17 {[%emt 0:02:22]} (29... Rxa2 $2 30. Rc8 $18) 30. Ne3 {[%emt 0:00:21] [#]} Rc5 {[%emt 0:02:03]} (30... Nxe5 $2 31. Bxe5 Qxe5 (31... Rxe5 $2 32. Rc7 $18) 32. Nxd5 Qxd5 33. Qxd5 (33. Qxd3 Qxd3 34. Rxd3 Bxh6 $18) (33. Rxd3 Qxf3 34. Rxf3 f5 $18) 33... exd5 34. Rxd3 Bxh6 35. Rc8+ Kg7 36. a3 $18 (36. Rxd5 b4 $18)) 31. Rxc5 {[%emt 0:04:57]} Nxc5 {[%emt 0:00:01]} 32. Qc6 {[%emt 0:11:03]} Rxa2 {[%emt 0:00:40]} (32... Qxb2 $17 {[%cal Oc5e4] Droht stark ...Ne4!} 33. Qe8 Qxa2 (33... Rxa2 34. Ng4)) 33. Qc8 $1 $11 {[%emt 0:00:49]} Rxb2 $2 {[%emt 0:03:51][%mdl 8192]} (33... Qxb2 $2 {verliert.} 34. Ng4 $18) (33... Ra7 $11 34. Bg7 Nd7) 34. Be7 $18 {[%emt 0:01:01]} Nd7 {[%emt 0:00:02]} 35. Bd6 $2 $40 {[%emt 0:01:18][%mdl 128] Weiss hat einigen Angriff.} ({Weiss kommt nicht vorbei an} 35. Qd8 $18 {Weiss will mit Bxf8 Matt setzen.} Qa7 36. Bxf8 (36. Rxd3 Rb1+ 37. Kh2 Qb7 $18)) 35... Qa7 $2 {[%emt 0:00:59][%mdl 8192]} (35... Re2 $11 36. Qxd7 Rxe3) 36. Bxf8 {[%emt 0:01:29]} Nxf8 {[%emt 0:00:01]} 37. Ng4 {[%emt 0:00:20] jetzt Nf6+ und aus.} Qe7 {[%emt 0:01:01]} 38. Nf6+ {[%emt 0:00:05] Weiß setzt Matt.} Kh8 {[%emt 0:00:18]} 39. Rxd3 {[%emt 0:00:36]} Qb4 {[%emt 0:00:05]} 40. Kg2 {[%emt 0:00:50]} Ra2 {[%emt 0:01:06]} 41. Rd8 {[%emt 0:03:25]} Rxf2+ {[%emt 0:00:04]} 42. Kh3 {[%emt 0:00:47] Gewichteter Fehlerwert: Weiß=0.47/Schwarz=0.35.  Verlustzug:     	---       	Schwarz=1     Fehler:       	Weiß=5     	Schwarz=3     Ungenau:       	---       	Schwarz=1     OK:         	Weiß=8     	Schwarz=9     Bester:       	Weiß=3     	Schwarz=2     Stark:        	Weiß=1     	Schwarz=1} 1-0